[Event "XVI Memorial Lezcano Montalvo 2024"]
[Site "Gran Canaria"]
[Date "2024.03.24"]
[Round "2.25"]
[White "Marrero Esser, Luis"]
[Black "Mukhi Talreja, Ishita Tina"]
[Result "1/2-1/2"]
[ECO "B01"]
[WhiteElo "1544"]
[BlackElo "1755"]
[Annotator "NA RC"]
[PlyCount "113"]
[EventDate "2024.03.23"]
[EventType "swiss"]
[EventCountry "ESP"]
[SourceTitle "playchess.com"]
[Source "ChessBase"]
[SourceQuality "1"]
[TimeControl "5400+30"]

1. e4 {[%emt 0:00:11]} d5 {[%emt 0:00:17]} 2. exd5 {[%emt 0:00:28]} Qxd5 {[%emt 0:00:12]} 3. Nc3 {[%emt 0:00:20]} Qd6 {[%emt 0:00:35]} 4. d4 {[%emt 0:02:50]} Nf6 {[%emt 0:01:15]} 5. Nf3 {[%emt 0:03:19]} c6 {[%emt 0:01:08]} 6. h3 {[%emt 0:01:46]} Bf5 {[%emt 0:01:57]} 7. Nh4 {[%emt 0:01:39]} Bg6 {[%emt 0:00:55]} 8. Nxg6 {[%emt 0:02:19]} hxg6 {[%emt 0:00:47]} 9. Be3 {[%emt 0:01:02]} e6 {[%emt 0:01:34]} 10. Qd2 {[%emt 0:03:21]} Be7 {[%emt 0:05:10]} 11. Be2 {[%emt 0:03:41]} Nd5 {[%emt 0:05:28]} 12. Nxd5 {[%emt 0:06:36]} Qxd5 {[%emt 0:01:19]} 13. Bf3 {[%emt 0:07:54]} Qd8 {[%emt 0:04:22]} 14. c4 {[%emt 0:09:29]} Na6 {[%emt 0:07:24]} 15. a3 {[%emt 0:08:03]} Nc7 {[%emt 0:02:56]} 16. Rd1 {[%emt 0:04:08]} Bf6 {[%emt 0:01:52]} 17. Qb4 {[%emt 0:07:38]} Qc8 {[%emt 0:04:22]} 18. d5 {[%emt 0:06:35]} a5 {[%emt 0:08:03]} 19. Qb3 {[%emt 0:12:28]} cxd5 {[%emt 0:01:47]} 20. cxd5 {[%emt 0:01:17]} Nxd5 {[%emt 0:02:58]} 21. Bxd5 {[%emt 0:01:34]} exd5 {[%emt 0:00:30]} 22. Rxd5 {[%emt 0:00:54]} O-O {[%emt 0:01:33]} 23. O-O {[%emt 0:00:57]} Qe6 {[%emt 0:08:56]} 24. Rb5 {[%emt 0:02:02]} Qxb3 {[%emt 0:01:48]} 25. Rxb3 {[%emt 0:00:08]} g5 {[%emt 0:02:34]} 26. Rd1 {[%emt 0:01:27]} Rfd8 {[%emt 0:05:44]} 27. Rxd8+ {[%emt 0:02:04]} Rxd8 {[%emt 0:28:34]} 28. Rxb7 {[%emt 0:00:26]} Be5 {[%emt 0:00:00]} 29. g3 {[%emt 0:01:08]} f6 {[%emt 0:00:00]} 30. Bb6 {[%emt 0:01:30]} Rd1+ {[%emt 0:00:00]} 31. Kg2 {[%emt 0:00:07]} Bxb2 {[%emt 0:00:00]} 32. Bxa5 {[%emt 0:00:17]} Bxa3 {[%emt 0:00:00]} 33. Bb6 {[%emt 0:01:10]} Kh7 {[%emt 0:00:00]} 34. Be3 {[%emt 0:00:40]} Bf8 {[%emt 0:00:00]} 35. Rf7 {[%emt 0:01:35]} Kg8 {[%emt 0:00:00]} 36. Rb7 {[%emt 0:00:14]} Rd8 {[%emt 0:00:00]} 37. Kf3 {[%emt 0:00:49]} Kh7 {[%emt 0:00:00]} 38. Kg4 {[%emt 0:00:39]} Kg6 {[%emt 0:00:00]} 39. Rb5 {[%emt 0:02:16]} Rc8 {[%emt 0:00:00]} 40. Rd5 {[%emt 0:01:37]} Rc4+ {[%emt 0:00:00]} 41. Rd4 {[%emt 0:00:38]} f5+ {[%emt 0:00:00]} 42. Kf3 {[%emt 0:00:06]} Rxd4 {[%emt 0:00:00]} 43. Bxd4 {[%emt 0:00:10]} Kf7 {[%emt 0:00:00]} 44. Be3 {[%emt 0:01:41]} Be7 {[%emt 0:00:00]} 45. Bd4 {[%emt 0:01:05]} g6 {[%emt 0:00:00]} 46. Be3 {[%emt 0:01:26]} Ke6 {[%emt 0:00:00]} 47. Bd4 {[%emt 0:00:47]} Kd5 {[%emt 0:00:00]} 48. Be3 {[%emt 0:00:16]} Ke6 {[%emt 0:00:00]} 49. Bd2 {[%emt 0:00:43]} Kf7 {[%emt 0:00:00]} 50. g4 {[%emt 0:01:04]} Ke6 {[%emt 0:00:00]} 51. Bc3 {[%emt 0:00:29]} Kd5 {[%emt 0:00:00]} 52. Kg2 {[%emt 0:00:45]} Ke4 {[%emt 0:00:00]} 53. f3+ {[%emt 0:00:26]} Kd3 {[%emt 0:00:22]} 54. Ba5 {[%emt 0:00:25]} Ke2 {[%emt 0:01:30]} 55. Bb6 {[%emt 0:00:09]} Bf6 {[%emt 0:01:55]} 56. Bc7 {[%emt 0:00:19]} Be7 {[%emt 0:02:11]} 57. Be5 {[%emt 0:01:14]} 1/2-1/2

[Event "XVI Memorial Lezcano Montalvo 2024"]
[Site "Gran Canaria"]
[Date "2024.03.24"]
[Round "2.26"]
[White "Broeder, Hans-Gert"]
[Black "Marrero Rodriguez, Jorge"]
[Result "0-1"]
[ECO "C47"]
[WhiteElo "1860"]
[BlackElo "2177"]
[Annotator "RC"]
[PlyCount "76"]
[EventDate "2024.03.23"]
[EventType "swiss"]
[EventCountry "ESP"]
[SourceTitle "playchess.com"]
[Source "ChessBase"]
[SourceQuality "1"]
[TimeControl "5400+30"]

1. e4 {[%emt 0:01:53]} e5 {[%emt 0:00:05]} 2. Nc3 {[%emt 0:00:23]} Nf6 {[%emt 0:00:07]} 3. Nf3 {[%emt 0:00:06]} Nc6 {[%emt 0:00:04]} 4. d4 {[%emt 0:00:15]} exd4 {[%emt 0:00:05]} 5. Nd5 {[%emt 0:00:23]} Bc5 {[%emt 0:00:49]} 6. Bg5 {[%emt 0:00:22]} Be7 {[%emt 0:00:06]} 7. Bf4 {[%emt 0:00:22]} d6 {[%emt 0:02:11]} 8. Nxd4 {[%emt 0:00:38]} O-O {[%emt 0:00:16]} 9. Nb5 {[%emt 0:02:20]} Nxd5 {[%emt 0:00:43]} 10. exd5 {[%emt 0:01:04]} Ne5 {[%emt 0:00:28]} 11. Be2 {[%emt 0:00:58]} Ng6 {[%emt 0:01:01]} 12. Bg3 {[%emt 0:01:31]} Bf6 {[%emt 0:00:22]} 13. c3 {[%emt 0:04:48]} Bd7 {[%emt 0:00:46]} 14. O-O {[%emt 0:01:25]} h5 {[%emt 0:01:06]} 15. h3 {[%emt 0:01:26]} Re8 {[%emt 0:14:45]} 16. Na3 {[%emt 0:02:30]} h4 {[%emt 0:09:23]} 17. Bh2 {[%emt 0:00:05]} Be5 {[%emt 0:01:57]} 18. f4 {[%emt 0:03:37]} Bf6 {[%emt 0:00:10]} 19. Bd3 {[%emt 0:04:46]} Ne7 {[%emt 0:00:56]} 20. Nc2 {[%emt 0:06:33]} Nf5 {[%emt 0:06:59]} 21. Qh5 {[%emt 0:03:09]} g6 {[%emt 0:01:20]} 22. Qf3 {[%emt 0:00:51]} c6 {[%emt 0:02:23]} 23. Kh1 {[%emt 0:04:28]} cxd5 {[%emt 0:05:35]} 24. Qxd5 {[%emt 0:06:43]} Bc6 {[%emt 0:02:07]} 25. Qb3 {[%emt 0:00:10]} Qd7 {[%emt 0:00:20]} 26. Rfe1 {[%emt 0:09:27]} Rxe1+ {[%emt 0:19:48]} 27. Rxe1 {[%emt 0:00:38]} Re8 {[%emt 0:00:21]} 28. Rd1 {[%emt 0:10:18]} Ne3 {[%emt 0:06:11]} 29. Nxe3 {[%emt 0:01:26]} Rxe3 {[%emt 0:00:06]} 30. Bxg6 {[%emt 0:07:11]} Ba4 {[%emt 0:07:21]} 31. Rxd6 {[%emt 0:04:29]} Qe7 {[%emt 0:02:17]} 32. Qxf7+ {[%emt 0:06:03]} Qxf7 {[%emt 0:00:18]} 33. Bxf7+ {[%emt 0:00:05]} Kxf7 {[%emt 0:00:08]} 34. Rd2 {[%emt 0:02:14]} Bc6 {[%emt 0:01:05]} 35. Kg1 {[%emt 0:00:36]} Be7 {[%emt 0:00:17]} 36. c4 {[%emt 0:01:45]} Bc5 {[%emt 0:00:17]} 37. Kf1 {[%emt 0:00:31]} Be4 {[%emt 0:01:40]} 38. Bg1 {[%emt 0:01:38]} Rd3 {[%emt 0:00:02]} 0-1

[Event "XVI Memorial Lezcano Montalvo 2024"]
[Site "Gran Canaria"]
[Date "2024.03.24"]
[Round "2.27"]
[White "Hernandez Leon, Sergio"]
[Black "Garcia Rodriguez, Adriana"]
[Result "1-0"]
[ECO "A28"]
[WhiteElo "2172"]
[BlackElo "1854"]
[Annotator "RC"]
[PlyCount "77"]
[EventDate "2024.03.23"]
[EventType "swiss"]
[EventCountry "ESP"]
[SourceTitle "playchess.com"]
[Source "ChessBase"]
[SourceQuality "1"]
[TimeControl "5400+30"]

1. c4 {[%emt 0:00:02]} e5 {[%emt 0:00:08]} 2. Nc3 {[%emt 0:00:05]} Nc6 {[%emt 0:00:09]} 3. Nf3 {[%emt 0:00:10]} Nf6 {[%emt 0:00:23]} 4. e3 {[%emt 0:00:08]} d6 {[%emt 0:00:12]} 5. d4 {[%emt 0:00:49]} exd4 {[%emt 0:03:20]} 6. exd4 {[%emt 0:00:33]} Bg4 {[%emt 0:03:01]} 7. Be2 {[%emt 0:00:06]} d5 {[%emt 0:00:18]} 8. Be3 {[%emt 0:02:51]} dxc4 {[%emt 0:00:36]} 9. Qa4 {[%emt 0:03:03]} Qd7 {[%emt 0:04:57]} 10. Qxc4 {[%emt 0:03:36]} Be6 {[%emt 0:02:07]} 11. Qb5 {[%emt 0:02:34]} O-O-O {[%emt 1:20:49]} 12. Rc1 {[%emt 0:25:38]} Bb4 {[%emt 0:00:00]} 13. O-O {[%emt 0:03:03]} h6 {[%emt 0:00:00]} 14. Ne5 {[%emt 0:08:40]} Nxe5 {[%emt 0:00:00]} 15. Qxb4 {[%emt 0:00:18]} Nc6 {[%emt 0:00:00]} 16. Qa4 {[%emt 0:00:10]} Nd5 {[%emt 0:00:00]} 17. Bb5 {[%emt 0:10:37]} Nb6 {[%emt 0:00:00]} 18. Bxc6 {[%emt 0:04:07]} Nxa4 {[%emt 0:00:00]} 19. Bxd7+ {[%emt 0:02:36]} Bxd7 {[%emt 0:00:00]} 20. Nd5 {[%emt 0:01:23]} c6 {[%emt 0:00:00]} 21. b3 {[%emt 0:00:24]} Kb8 {[%emt 0:00:00]} 22. Bf4+ {[%emt 0:00:53]} Ka8 {[%emt 0:00:00]} 23. Nc7+ {[%emt 0:00:09]} Kb8 {[%emt 0:00:00]} 24. bxa4 {[%emt 0:01:00]} Kc8 {[%emt 0:00:00]} 25. Rfe1 {[%emt 0:01:48]} g5 {[%emt 0:00:00]} 26. Be5 {[%emt 0:00:51]} f6 {[%emt 0:00:00]} 27. Bg3 {[%emt 0:05:50]} f5 {[%emt 0:00:00]} 28. Be5 {[%emt 0:00:06]} Rhf8 {[%emt 0:00:00]} 29. a5 {[%emt 0:01:51]} f4 {[%emt 0:00:00]} 30. Nd5 {[%emt 0:00:37]} Be6 {[%emt 0:00:00]} 31. Nb4 {[%emt 0:00:17]} a6 {[%emt 0:00:00]} 32. Nxc6 {[%emt 0:05:27]} bxc6 {[%emt 0:00:00]} 33. Rxc6+ {[%emt 0:00:06]} Kd7 {[%emt 0:00:00]} 34. Rc7+ {[%emt 0:00:06]} Ke8 {[%emt 0:00:00]} 35. Bg7 {[%emt 0:00:15]} Rd6 {[%emt 0:00:00]} 36. Rc8+ {[%emt 0:00:18]} Kf7 {[%emt 0:00:00]} 37. Bxf8 {[%emt 0:00:13]} Rxd4 {[%emt 0:00:00]} 38. Bc5 {[%emt 0:00:39]} Rd5 {[%emt 0:00:00]} 39. Rc7+ {[%emt 0:00:08]} 1-0

[Event "XVI Memorial Lezcano Montalvo 2024"]
[Site "Gran Canaria"]
[Date "2024.03.24"]
[Round "2.28"]
[White "Perez Celis, Alba"]
[Black "Gonzalez Martinez, Miguel Angel"]
[Result "1/2-1/2"]
[ECO "C41"]
[WhiteElo "1854"]
[BlackElo "2158"]
[Annotator "RC"]
[PlyCount "66"]
[EventDate "2024.03.23"]
[EventType "swiss"]
[EventCountry "ESP"]
[SourceTitle "playchess.com"]
[Source "ChessBase"]
[SourceQuality "1"]
[TimeControl "5400+30"]

1. e4 {[%emt 0:09:01]} d6 {[%emt 0:00:16]} 2. d4 {[%emt 0:00:25]} Nf6 {[%emt 0:00:07]} 3. Nc3 {[%emt 0:00:52]} Nbd7 {[%emt 0:00:08]} 4. Nf3 {[%emt 0:02:25]} e5 {[%emt 0:00:11]} 5. Bc4 {[%emt 0:01:54]} Be7 {[%emt 0:00:08]} 6. O-O {[%emt 0:29:25]} c6 {[%emt 0:04:19]} 7. h3 {[%emt 0:04:35]} b5 {[%emt 0:03:52]} 8. Bd3 {[%emt 0:01:38]} a6 {[%emt 0:00:57]} 9. a4 {[%emt 0:01:32]} b4 {[%emt 0:03:02]} 10. Ne2 {[%emt 0:00:15]} a5 {[%emt 0:01:03]} 11. Ng3 {[%emt 0:00:45]} h6 {[%emt 0:05:51]} 12. Nf5 {[%emt 0:01:30]} Bf8 {[%emt 0:03:33]} 13. Be3 {[%emt 0:05:50]} g6 {[%emt 0:04:53]} 14. Ng3 {[%emt 0:01:00]} Qc7 {[%emt 0:04:49]} 15. Qd2 {[%emt 0:01:08]} Bg7 {[%emt 0:06:31]} 16. Nh4 {[%emt 0:03:41]} c5 {[%emt 0:02:05]} 17. dxe5 {[%emt 0:02:06]} dxe5 {[%emt 0:02:11]} 18. Bb5 {[%emt 0:02:44]} Ba6 {[%emt 0:07:57]} 19. f4 {[%emt 0:01:43]} Bxb5 {[%emt 0:00:26]} 20. axb5 {[%emt 0:00:11]} O-O {[%emt 0:01:13]} 21. fxe5 {[%emt 0:01:54]} Qxe5 {[%emt 0:00:55]} 22. Bf4 {[%emt 0:03:33]} Qxb2 {[%emt 0:01:57]} 23. Bxh6 {[%emt 0:02:14]} Qd4+ {[%emt 0:05:58]} 24. Qxd4 {[%emt 0:01:56]} cxd4 {[%emt 0:00:01]} 25. Bxg7 {[%emt 0:00:11]} Kxg7 {[%emt 0:00:06]} 26. Nf3 {[%emt 0:00:07]} Nc5 {[%emt 0:06:44]} 27. Nxd4 {[%emt 0:01:53]} Nfxe4 {[%emt 0:00:43]} 28. Nxe4 {[%emt 0:00:26]} Nxe4 {[%emt 0:00:03]} 29. Nc6 {[%emt 0:00:28]} Nd6 {[%emt 0:35:01]} 30. b6 {[%emt 0:20:08]} Ra6 {[%emt 0:00:30]} 31. Nxb4 {[%emt 0:00:30]} Rxb6 {[%emt 0:00:30]} 32. Nd5 {[%emt 0:00:30]} Rb5 33. Nc3 {[%emt 0:00:30]} Rc5 {[%emt 0:01:00]} 1/2-1/2

[Event "XVI Memorial Lezcano Montalvo 2024"]
[Site "Gran Canaria"]
[Date "2024.03.24"]
[Round "2.30"]
[White "Garcia Padron, Jose"]
[Black "Sanchez Montesdeoca, Isaac"]
[Result "1-0"]
[ECO "A45"]
[WhiteElo "2385"]
[BlackElo "1832"]
[Annotator "RC"]
[PlyCount "39"]
[EventDate "2024.03.23"]
[EventType "swiss"]
[EventCountry "ESP"]
[SourceTitle "playchess.com"]
[Source "ChessBase"]
[SourceQuality "1"]
[TimeControl "5400+30"]

1. d4 {[%emt 0:00:22]} Nf6 {[%emt 0:00:19]} 2. Bg5 {[%emt 0:00:05]} h6 {[%emt 0:00:47]} 3. Bxf6 {[%emt 0:00:59]} exf6 {[%emt 0:00:09]} 4. g3 {[%emt 0:01:00]} d5 {[%emt 0:02:28]} 5. Bg2 {[%emt 0:00:10]} Be6 {[%emt 0:03:04]} 6. c4 {[%emt 0:01:14]} Bb4+ {[%emt 0:02:16]} 7. Nc3 {[%emt 0:00:06]} O-O {[%emt 0:00:40]} 8. Qa4 {[%emt 0:35:45]} c5 {[%emt 0:07:33]} 9. dxc5 {[%emt 0:01:32]} Bxc5 {[%emt 0:09:18]} 10. cxd5 {[%emt 0:07:54]} Bd7 {[%emt 0:00:11]} 11. Qb3 {[%emt 0:00:53]} a5 {[%emt 0:04:01]} 12. Nf3 {[%emt 0:01:12]} a4 {[%emt 0:01:02]} 13. Qc2 {[%emt 0:00:13]} Na6 {[%emt 0:07:24]} 14. a3 {[%emt 0:00:09]} Rc8 {[%emt 0:01:01]} 15. O-O {[%emt 0:00:07]} Re8 {[%emt 0:00:25]} 16. e3 {[%emt 0:01:05]} Ba7 {[%emt 0:07:31]} 17. Rad1 {[%emt 0:00:44]} Rc5 {[%emt 0:02:49]} 18. Nd4 {[%emt 0:00:53]} Qc8 {[%emt 0:00:54]} 19. Qd3 {[%emt 0:01:21]} g6 {[%emt 0:08:15]} 20. Ne4 {[%emt 0:00:36]} 1-0

[Event "XVI Memorial Lezcano Montalvo 2024"]
[Site "Gran Canaria"]
[Date "2024.03.24"]
[Round "2.31"]
[White "Garcia Cruz, Jose Manuel"]
[Black "Hernando Rodrigo, Jose Maria"]
[Result "0-1"]
[ECO "A06"]
[WhiteElo "1564"]
[BlackElo "2257"]
[Annotator "RC"]
[PlyCount "52"]
[EventDate "2024.03.23"]
[EventType "swiss"]
[EventCountry "ESP"]
[SourceTitle "playchess.com"]
[Source "ChessBase"]
[SourceQuality "1"]
[TimeControl "5400+30"]

1. Nf3 {[%emt 0:00:19]} Nf6 {[%emt 0:00:10]} 2. b3 {[%emt 0:00:34]} d5 {[%emt 0:00:36]} 3. Bb2 {[%emt 0:01:14]} c5 {[%emt 0:00:25]} 4. d4 {[%emt 0:01:36]} cxd4 {[%emt 0:01:11]} 5. Bxd4 {[%emt 0:02:24]} Nc6 {[%emt 0:04:20]} 6. Bb2 {[%emt 0:04:00]} Bg4 {[%emt 0:02:05]} 7. Ne5 {[%emt 0:02:37]} Nxe5 {[%emt 0:00:40]} 8. Bxe5 {[%emt 0:00:21]} e6 {[%emt 0:00:33]} 9. h3 {[%emt 0:04:36]} Bh5 {[%emt 0:01:12]} 10. Qd4 {[%emt 0:05:01]} Qa5+ {[%emt 0:06:39]} 11. c3 {[%emt 0:03:37]} Bc5 {[%emt 0:17:41]} 12. Qa4+ {[%emt 0:19:49]} Qxa4 {[%emt 0:00:12]} 13. bxa4 {[%emt 0:00:22]} O-O {[%emt 0:02:07]} 14. e3 {[%emt 0:01:10]} Rac8 {[%emt 0:00:36]} 15. Nd2 {[%emt 0:02:27]} Bg6 {[%emt 0:00:51]} 16. Be2 {[%emt 0:06:22]} Ba3 {[%emt 0:04:03]} 17. O-O {[%emt 0:08:00]} Bb2 {[%emt 0:00:52]} 18. Rab1 {[%emt 0:08:44]} Bxb1 {[%emt 0:00:20]} 19. Bxf6 {[%emt 0:02:51]} Bg6 {[%emt 0:01:07]} 20. Bd4 {[%emt 0:07:37]} Bxc3 {[%emt 0:00:58]} 21. Nb3 {[%emt 0:02:01]} Bxd4 {[%emt 0:00:00]} 22. Nxd4 {[%emt 0:00:49]} Rc5 {[%emt 0:00:43]} 23. Nb5 {[%emt 0:02:33]} a6 {[%emt 0:01:09]} 24. Nd4 {[%emt 0:03:23]} Rfc8 {[%emt 0:00:44]} 25. Nb3 {[%emt 0:01:28]} Rc2 {[%emt 0:00:00]} 26. Bf3 {[%emt 0:02:43]} Rxa2 {[%emt 0:00:51]} 0-1

[Event "XVI Memorial Lezcano Montalvo 2024"]
[Site "Gran Canaria"]
[Date "2024.03.24"]
[Round "2.32"]
[White "Tytynnik, Artem"]
[Black "Leandro Tejera, Damian"]
[Result "1-0"]
[ECO "A94"]
[WhiteElo "2197"]
[BlackElo "1483"]
[Annotator "RC"]
[PlyCount "51"]
[EventDate "2024.03.23"]
[EventType "swiss"]
[EventCountry "ESP"]
[SourceTitle "playchess.com"]
[Source "ChessBase"]
[SourceQuality "1"]
[TimeControl "5400+30"]

1. d4 {[%emt 0:01:02]} f5 {[%emt 0:00:26]} 2. g3 {[%emt 0:00:43]} e6 {[%emt 0:00:20]} 3. Bg2 {[%emt 0:00:10]} Nf6 {[%emt 0:00:11]} 4. Nf3 {[%emt 0:00:18]} d5 {[%emt 0:00:12]} 5. O-O {[%emt 0:00:09]} Bd6 {[%emt 0:00:06]} 6. c4 {[%emt 0:00:13]} c6 {[%emt 0:00:09]} 7. b3 {[%emt 0:00:13]} O-O {[%emt 0:00:21]} 8. Ba3 {[%emt 0:00:29]} Bxa3 {[%emt 0:00:53]} 9. Nxa3 {[%emt 0:00:03]} Qd6 {[%emt 0:00:44]} 10. Nc2 {[%emt 0:00:26]} Bd7 {[%emt 0:01:25]} 11. Nce1 {[%emt 0:00:26]} Be8 {[%emt 0:00:35]} 12. Nd3 {[%emt 0:00:47]} Bh5 {[%emt 0:00:37]} 13. Qc2 {[%emt 0:01:23]} Ne4 {[%emt 0:00:18]} 14. Nfe5 {[%emt 0:05:40]} Nd7 {[%emt 0:01:54]} 15. Nf4 {[%emt 0:02:17]} Be8 {[%emt 0:00:56]} 16. Nxd7 {[%emt 0:02:05]} Bxd7 {[%emt 0:00:38]} 17. Rad1 {[%emt 0:00:38]} Rac8 {[%emt 0:00:24]} 18. f3 {[%emt 0:00:47]} Nf6 {[%emt 0:00:50]} 19. e4 {[%emt 0:01:17]} fxe4 {[%emt 0:00:44]} 20. fxe4 {[%emt 0:00:11]} dxe4 {[%emt 0:00:27]} 21. Bxe4 {[%emt 0:00:51]} Nxe4 {[%emt 0:00:06]} 22. Qxe4 {[%emt 0:00:09]} c5 {[%emt 0:00:25]} 23. d5 {[%emt 0:07:51]} exd5 {[%emt 0:00:38]} 24. Rd3 {[%emt 1:14:22]} d4 25. Rxd4 {[%emt 0:00:00]} Bc6 {[%emt 0:01:01]} 26. Rd5 {[%emt 0:00:00]} 1-0

[Event "XVI Memorial Lezcano Montalvo 2024"]
[Site "Gran Canaria"]
[Date "2024.03.24"]
[Round "2.35"]
[White "Illana Elorduy, Jesus Eusebio"]
[Black "Rivero Reyes, Alejandro"]
[Result "0-1"]
[ECO "A50"]
[WhiteElo "1623"]
[BlackElo "1799"]
[Annotator "NA RC"]
[PlyCount "110"]
[EventDate "2024.03.23"]
[EventType "swiss"]
[EventCountry "ESP"]
[SourceTitle "playchess.com"]
[Source "ChessBase"]
[SourceQuality "1"]
[TimeControl "5400+30"]

1. d4 {[%emt 0:00:02]} Nf6 {[%emt 0:03:11]} 2. c4 {[%emt 0:00:02]} b6 {[%emt 0:00:24]} 3. Nc3 {[%emt 0:00:16]} Bb7 {[%emt 0:00:11]} 4. Bg5 {[%emt 0:03:23]} h6 {[%emt 0:03:13]} 5. Bh4 {[%emt 0:02:02]} e6 {[%emt 0:02:08]} 6. e3 {[%emt 0:01:06]} d6 {[%emt 0:07:17]} 7. Rc1 {[%emt 0:05:30]} Nbd7 {[%emt 0:01:39]} 8. a3 {[%emt 0:01:54]} Be7 {[%emt 0:02:47]} 9. f3 {[%emt 0:01:30]} c5 {[%emt 0:01:19]} 10. Bf2 {[%emt 0:04:17]} cxd4 {[%emt 0:01:14]} 11. exd4 {[%emt 0:00:09]} O-O {[%emt 0:06:38]} 12. Bd3 {[%emt 0:01:14]} d5 {[%emt 0:00:34]} 13. Nge2 {[%emt 0:04:06]} dxc4 {[%emt 0:05:36]} 14. Bxc4 {[%emt 0:00:52]} Rc8 {[%emt 0:02:13]} 15. Ba2 {[%emt 0:01:25]} Re8 {[%emt 0:07:52]} 16. O-O {[%emt 0:00:49]} a6 {[%emt 0:03:31]} 17. Ng3 {[%emt 0:04:03]} b5 {[%emt 0:00:23]} 18. Bb1 {[%emt 0:02:20]} Nb6 {[%emt 0:01:47]} 19. Bd3 {[%emt 0:03:48]} Nc4 {[%emt 0:10:11]} 20. Qe2 {[%emt 0:00:59]} Bf8 {[%emt 0:00:42]} 21. Nce4 {[%emt 0:01:16]} Bd5 {[%emt 0:04:29]} 22. a4 {[%emt 0:03:09]} g6 {[%emt 0:06:46]} 23. b3 {[%emt 0:02:37]} Bxe4 {[%emt 0:04:44]} 24. Nxe4 {[%emt 0:03:14]} Nxe4 {[%emt 0:02:12]} 25. bxc4 {[%emt 0:01:21]} Nxf2 {[%emt 0:00:28]} 26. Qxf2 {[%emt 0:00:35]} Bg7 {[%emt 0:03:05]} 27. Kh1 {[%emt 0:04:53]} Bxd4 {[%emt 0:03:12]} 28. Qd2 {[%emt 0:01:15]} bxa4 {[%emt 0:04:24]} 29. Rcd1 {[%emt 0:00:45]} Bg7 {[%emt 0:05:38]} 30. Qb4 {[%emt 0:01:30]} Qc7 {[%emt 0:01:57]} 31. Qxa4 {[%emt 0:00:45]} a5 {[%emt 0:00:27]} 32. Rfe1 {[%emt 0:04:47]} Bc3 {[%emt 0:00:54]} 33. Re2 {[%emt 0:05:09]} Red8 {[%emt 0:00:48]} 34. Rc2 {[%emt 0:09:51]} Qxc4 {[%emt 0:01:30]} 35. Qxc4 {[%emt 0:01:01]} Rxc4 {[%emt 0:00:00]} 36. Be2 {[%emt 0:01:05]} Rxd1+ {[%emt 0:00:10]} 37. Bxd1 {[%emt 0:00:02]} Rd4 {[%emt 0:00:21]} 38. Be2 {[%emt 0:00:44]} Rd2 {[%emt 0:00:50]} 39. Rxd2 {[%emt 0:00:02]} Bxd2 {[%emt 0:00:09]} 40. Bb5 {[%emt 0:01:09]} Kf8 {[%emt 0:00:20]} 41. g4 {[%emt 0:00:37]} Ke7 {[%emt 0:00:17]} 42. Kg2 {[%emt 0:00:33]} f5 {[%emt 0:00:34]} 43. Bd3 {[%emt 0:01:42]} Kd6 {[%emt 0:00:29]} 44. h4 {[%emt 0:00:19]} Ke5 {[%emt 0:00:32]} 45. Kf2 {[%emt 0:00:53]} Kf4 {[%emt 0:00:30]} 46. Ke2 {[%emt 0:01:07]} Bb4 {[%emt 0:00:30]} 47. Bc4 {[%emt 0:01:55]} fxg4 {[%emt 0:02:00]} 48. fxg4 {[%emt 0:00:24]} Kxg4 {[%emt 0:00:18]} 49. Bxe6+ {[%emt 0:00:12]} Kxh4 {[%emt 0:00:10]} 50. Kf3 {[%emt 0:00:26]} h5 {[%emt 0:00:18]} 51. Bd7 {[%emt 0:01:03]} g5 {[%emt 0:00:24]} 52. Be6 {[%emt 0:01:23]} a4 {[%emt 0:00:36]} 53. Ba2 {[%emt 0:00:54]} Kh3 {[%emt 0:00:36]} 54. Bf7 {[%emt 0:01:10]} g4+ {[%emt 0:00:29]} 55. Kf2 {[%emt 0:01:02]} g3+ {[%emt 0:00:25]} 0-1

[Event "XVI Memorial Lezcano Montalvo 2024"]
[Site "Gran Canaria"]
[Date "2024.03.24"]
[Round "2.36"]
[White "Basualdo De Ornelas, Jorge"]
[Black "Sanchez Arencibia, Heriberto"]
[Result "1-0"]
[ECO "B30"]
[WhiteElo "1792"]
[BlackElo "1636"]
[Annotator "NA RC"]
[PlyCount "111"]
[EventDate "2024.03.23"]
[EventType "swiss"]
[EventCountry "ESP"]
[SourceTitle "playchess.com"]
[Source "ChessBase"]
[SourceQuality "1"]
[TimeControl "5400+30"]

1. e4 {[%emt 1:31:00]} c5 {[%emt 0:00:04]} 2. Nf3 {[%emt 0:00:00]} Nc6 {[%emt 0:00:07]} 3. Bb5 {[%emt 0:00:00]} a6 {[%emt 0:00:44]} 4. Bxc6 {[%emt 0:00:00]} dxc6 {[%emt 0:00:54]} 5. d3 {[%emt 0:00:00]} Bg4 {[%emt 0:00:39]} 6. h3 {[%emt 0:00:00]} Bh5 {[%emt 0:00:10]} 7. Be3 {[%emt 0:00:00]} e6 {[%emt 0:01:08]} 8. O-O {[%emt 0:00:00]} Bd6 {[%emt 0:01:23]} 9. Nbd2 {[%emt 0:00:00]} b5 {[%emt 0:01:25]} 10. c4 {[%emt 0:00:00]} Ne7 {[%emt 0:01:58]} 11. Nb3 {[%emt 0:00:00]} O-O {[%emt 0:11:54]} 12. Nxc5 {[%emt 0:00:00]} Qc7 {[%emt 0:05:11]} 13. g4 {[%emt 0:00:00]} Bg6 {[%emt 0:02:08]} 14. e5 {[%emt 0:00:00]} Bxc5 {[%emt 0:00:32]} 15. Bxc5 {[%emt 0:00:00]} Rfd8 {[%emt 0:00:47]} 16. Bd6 {[%emt 0:00:00]} Qb7 {[%emt 0:03:22]} 17. Qe2 {[%emt 0:00:00]} Nc8 {[%emt 0:00:30]} 18. c5 {[%emt 0:00:00]} Ne7 {[%emt 0:00:54]} 19. Nh4 {[%emt 0:00:00]} Nd5 {[%emt 0:01:17]} 20. f4 {[%emt 0:00:00]} f5 {[%emt 0:15:55]} 21. exf6 {[%emt 0:00:00]} Nxf6 {[%emt 0:01:53]} 22. Nxg6 {[%emt 0:00:00]} hxg6 {[%emt 0:02:06]} 23. Qxe6+ {[%emt 0:00:00]} Kh7 {[%emt 0:01:47]} 24. Qe1 {[%emt 0:00:00]} Qa7 {[%emt 0:01:38]} 25. Qf2 {[%emt 0:00:00]} Qf7 {[%emt 0:04:36]} 26. b3 {[%emt 0:00:00]} Re8 {[%emt 0:04:06]} 27. Rae1 {[%emt 0:00:00]} Qd5 {[%emt 0:01:41]} 28. Rd1 {[%emt 0:00:00]} Qf7 {[%emt 0:04:27]} 29. Be5 {[%emt 0:01:31]} Nd5 {[%emt 0:00:45]} 30. d4 {[%emt 0:01:05]} Rf8 {[%emt 0:08:23]} 31. Rd3 {[%emt 0:01:15]} Qd7 {[%emt 0:02:12]} 32. Rf3 {[%emt 0:02:04]} Rf7 {[%emt 0:01:40]} 33. f5 {[%emt 0:05:32]} g5 {[%emt 0:01:44]} 34. h4 {[%emt 0:00:23]} Qd8 {[%emt 0:06:03]} 35. Rh3 {[%emt 0:02:19]} Nf4 {[%emt 0:01:58]} 36. Bxf4 {[%emt 0:00:22]} gxf4 {[%emt 0:00:07]} 37. Qxf4 {[%emt 0:00:09]} Qd5 {[%emt 0:00:56]} 38. Qe5 {[%emt 0:00:56]} Qd7 {[%emt 0:00:00]} 39. Re3 {[%emt 0:00:12]} Raf8 {[%emt 0:01:10]} 40. Rfe1 {[%emt 0:00:48]} Qd8 {[%emt 0:00:20]} 41. Kg2 {[%emt 0:00:31]} Kg8 {[%emt 0:00:23]} 42. Kg3 {[%emt 0:00:48]} Rd7 {[%emt 0:00:56]} 43. Re4 {[%emt 0:00:19]} Rd5 {[%emt 0:00:34]} 44. Qe6+ {[%emt 0:01:24]} Kh8 {[%emt 0:00:19]} 45. Qxc6 {[%emt 0:00:20]} Rxd4 {[%emt 0:00:07]} 46. R1e3 {[%emt 0:01:30]} Rd3 {[%emt 0:01:23]} 47. b4 {[%emt 0:00:48]} Qb8+ {[%emt 0:00:36]} 48. Kf3 {[%emt 0:00:21]} Rxe3+ {[%emt 0:00:55]} 49. Rxe3 {[%emt 0:00:06]} Qh2 {[%emt 0:01:37]} 50. Qd6 {[%emt 0:00:09]} Qh1+ {[%emt 0:01:07]} 51. Ke2 {[%emt 0:00:30]} Qg2+ {[%emt 0:00:59]} 52. Kd3 {[%emt 0:00:10]} Qf1+ {[%emt 0:00:49]} 53. Kd2 {[%emt 0:00:27]} Rg8 {[%emt 0:01:28]} 54. c6 {[%emt 0:00:30]} Qf2+ {[%emt 0:00:35]} 55. Re2 {[%emt 0:00:04]} Qxh4 {[%emt 0:01:15]} 56. Rh2 {[%emt 0:00:30]} 1-0